fUSD/lending_fUSD_20241119
["ID","MTS","AMOUNT","RATE_DAILY","PERIOD"]
[342662254,1732027896275,-3040.07558202,0.00032876,2]
[342662255,1732027896288,-3445.41899296,0.00032876,2]
[342662256,1732027896298,-3445.41899296,0.00032876,2]
[342662257,1732027896308,-3445.41899296,0.00032876,2]
[342662258,1732027896318,-312.94976757,0.00032876,2]
[342662259,1732027896327,-500.0,0.00032876,2]
[342662260,1732027896337,-500.0,0.00032876,2]
[342662261,1732027896347,-500.0,0.00032876,2]
[342662262,1732027896358,-560.83642092,0.00032876,2]
[342662263,1732027896367,-630.57818441,0.00032876,2]
[342662264,1732027896377,-1359.53267572,0.00032876,2]
[342662265,1732027896388,-1359.53267572,0.00032876,2]
[342662266,1732027896398,-1359.53267572,0.00032876,2]
[342662267,1732027896407,-1359.53267572,0.00032876,2]
[342662268,1732027896417,-1359.53267572,0.00032876,2]
[342662269,1732027896427,-1359.53267572,0.00032876,2]
[342662270,1732027896437,-1359.53267572,0.00032876,2]
[342662271,1732027896447,-1359.53267572,0.00032876,2]
[342662272,1732027896456,-1563.46257709,0.00032876,2]
[342662273,1732027896465,-1563.46257709,0.00032876,2]
[342662274,1732027896475,-208.25212264,0.00032876,2]
[342662275,1732027896484,-500.0,0.00032876,2]
[342662276,1732027896494,-500.0,0.00032876,2]
[342662277,1732027896504,-500.0,0.00032876,2]
[342662278,1732027896514,-500.0,0.00032876,2]
[342662279,1732027896523,-500.0,0.00032876,2]
[342662280,1732027896533,-500.0,0.00032876,2]
[342662281,1732027896546,-500.0,0.00032876,2]
[342662282,1732027896555,-450.0,0.00032876,2]
[342662283,1732027896565,-606.0554033,0.00032876,2]
[342662284,1732027896579,-2000.0,0.00032876,120]
[342662285,1732027896589,-2000.0,0.00032876,120]
[342662286,1732027896599,-2000.0,0.00032876,120]
[342662287,1732027896609,-2000.0,0.00032876,120]
[342662288,1732027896619,-2000.0,0.00032876,120]
[342662289,1732027896629,-2000.0,0.00032876,120]
[342662290,1732027896644,-2000.0,0.00032876,120]
[342662291,1732027896664,-2000.0,0.00032876,120]
[342662292,1732027896674,-2000.0,0.00032876,120]
[342662293,1732027896684,-2000.0,0.00032876,120]
[342662294,1732027896694,-2000.0,0.00032876,120]
[342662295,1732027896704,-2000.0,0.00032876,120]
[342662296,1732027896714,-2036.4173705,0.00032876,120]
[342662297,1732027896723,-4125.24,0.00032876,42]
[342662298,1732027896733,-1000.0,0.00032877,14]
[342662299,1732027896742,-326.93,0.00032877,2]
[342662300,1732027896751,-4132640.76755951,0.0003288,30]
[342662301,1732027896762,-239.580428,0.0003288,7]
[342662302,1732027896772,-239.580428,0.0003288,7]
[342662303,1732027896783,-467.597874,0.0003288,7]
[342662304,1732027896798,-151.0,0.0003288,7]
[342662305,1732027896808,-467.597874,0.0003288,7]
[342662306,1732027896818,-242.540746,0.0003288,7]
[342662307,1732027896827,-242.540746,0.0003288,7]
[342662308,1732027896837,-151.0,0.0003288,7]
[342662309,1732027896847,-151.0,0.0003288,7]
[342662310,1732027896856,-280.31998,0.0003288,7]
[342662311,1732027896866,-158.982263,0.0003288,7]
[342662312,1732027896876,-158.982263,0.0003288,7]
[342662313,1732027896885,-399.598778,0.0003288,7]
[342662314,1732027896895,-399.598778,0.0003288,7]
[342662315,1732027896905,-192.112459,0.0003288,7]
[342662316,1732027896914,-192.112459,0.0003288,7]
[342662317,1732027896924,-462.25,0.0003288,7]
[342662318,1732027896934,-462.25,0.0003288,7]
[342662319,1732027896943,-417.319908,0.0003288,7]
[342662320,1732027896953,-417.319908,0.0003288,7]
[342662321,1732027896962,-292.450624,0.0003288,7]
[342662322,1732027896972,-292.450624,0.0003288,7]
[342662323,1732027896982,-166.543521,0.0003288,7]
[342662324,1732027896991,-166.543521,0.0003288,7]
[342662325,1732027897001,-1207.212369,0.0003288,7]
[342662326,1732027897010,-1207.212369,0.0003288,7]
[342662327,1732027897020,-877.73567,0.0003288,7]
[342662328,1732027897030,-877.73567,0.0003288,7]
[342662329,1732027897042,-151.0,0.0003288,7]
[342662330,1732027897051,-261.431179,0.0003288,7]
[342662331,1732027897061,-261.431179,0.0003288,7]
[342662332,1732027897241,-151.0,0.0003288,7]
[342662333,1732027897252,-654.359303,0.0003288,7]
[342662334,1732027897261,-654.359303,0.0003288,7]
[342662335,1732027897271,-379.853201,0.0003288,7]
[342662336,1732027897280,-379.853201,0.0003288,7]
[342662337,1732027897295,-151.0,0.0003288,7]
[342662338,1732027897304,-159.741565,0.0003288,7]
[342662339,1732027897315,-159.741565,0.0003288,7]
[342662340,1732027897324,-1098.619911,0.0003288,7]
[342662341,1732027897333,-1098.619911,0.0003288,7]
[342662342,1732027897343,-228.011085,0.0003288,7]
[342662343,1732027897356,-228.011085,0.0003288,7]
[342662344,1732027897365,-151.0,0.0003288,7]
[342662345,1732027897375,-1701.719222,0.0003288,7]
[342662346,1732027897384,-1701.719222,0.0003288,7]
[342662347,1732027897394,-740.730375,0.0003288,7]
[342662348,1732027897403,-740.730375,0.0003288,7]
[342662349,1732027897413,-158.593645,0.0003288,7]
[342662350,1732027897423,-158.593645,0.0003288,7]
[342662351,1732027897432,-447.488631,0.0003288,7]
[342662352,1732027897443,-205.590034,0.0003288,7]
[342662353,1732027897452,-447.488631,0.0003288,7]
[342662354,1732027897461,-205.590034,0.0003288,7]
[342662355,1732027897470,-419.839689,0.0003288,7]
[342662356,1732027897480,-625.07793,0.0003288,7]
[342662357,1732027897490,-419.839689,0.0003288,7]
[342662358,1732027897499,-151.0,0.0003288,7]
[342662359,1732027897509,-625.07793,0.0003288,7]
[342662360,1732027897518,-600.0,0.0003288,7]
[342662361,1732027897527,-600.0,0.0003288,7]
[342662362,1732027897540,-209.894276,0.0003288,7]
[342662363,1732027897550,-159.576969,0.0003288,7]
[342662364,1732027897560,-298.362701,0.0003288,7]
[342662365,1732027897571,-159.576969,0.0003288,7]
[342662366,1732027897581,-298.362701,0.0003288,7]
[342662367,1732027897592,-167.488161,0.0003288,7]
[342662368,1732027897601,-167.488161,0.0003288,7]
[342662369,1732027897611,-374.435502,0.0003288,7]
[342662370,1732027897620,-374.435502,0.0003288,7]
[342662371,1732027897630,-2142.500908,0.0003288,7]
[342662372,1732027897639,-2142.500908,0.0003288,7]
[342662373,1732027897648,-302.433536,0.0003288,7]
[342662374,1732027897658,-302.433536,0.0003288,7]
[342662375,1732027897667,-253.172762,0.0003288,7]
[342662376,1732027897676,-253.172762,0.0003288,7]
[342662377,1732027897685,-469.63876,0.0003288,7]
[342662378,1732027897695,-469.63876,0.0003288,7]
[342662379,1732027897705,-151.0,0.0003288,7]
[342662380,1732027897714,-1353.867981,0.0003288,7]
[342662381,1732027897724,-1353.867981,0.0003288,7]
[342662382,1732027897734,-151.0,0.0003288,7]
[342662383,1732027897743,-193.468399,0.0003288,7]
[342662384,1732027897753,-1308.35475,0.0003288,7]
[342662385,1732027897763,-1308.35475,0.0003288,7]
[342662386,1732027897772,-699.733326,0.0003288,7]
[342662387,1732027897782,-699.733326,0.0003288,7]
[342662388,1732027897798,-4493.276102,0.0003288,7]
[342662389,1732027897807,-720.751891,0.0003288,7]
[342662390,1732027897817,-4493.276102,0.0003288,7]
[342662391,1732027897826,-720.751891,0.0003288,7]
[342662392,1732027897835,-480.058897,0.0003288,7]
[342662393,1732027897845,-480.058897,0.0003288,7]
[342662394,1732027897854,-474.793912,0.0003288,7]
[342662395,1732027897863,-474.793912,0.0003288,7]
[342662396,1732027897872,-571.912875,0.0003288,7]
[342662397,1732027897882,-571.912875,0.0003288,7]
[342662398,1732027897892,-151.0,0.0003288,7]
[342662399,1732027897901,-151.0,0.0003288,7]
[342662400,1732027897911,-219.846201,0.0003288,7]
[342662401,1732027897920,-600.054296,0.0003288,7]
[342662402,1732027897930,-219.846201,0.0003288,7]
[342662403,1732027897939,-600.054296,0.0003288,7]
[342662404,1732027897949,-151.0,0.0003288,7]
[342662405,1732027897958,-492.45,0.0003288,7]
[342662406,1732027897968,-492.45,0.0003288,7]
[342662407,1732027897977,-151.0,0.0003288,7]
[342662408,1732027897987,-584.547328,0.0003288,7]
[342662409,1732027897996,-584.547328,0.0003288,7]
[342662410,1732027898006,-209.479131,0.0003288,7]
[342662411,1732027898015,-209.479131,0.0003288,7]
[342662412,1732027898024,-649.373281,0.0003288,7]
[342662413,1732027898034,-649.373281,0.0003288,7]
[342662414,1732027898048,-450.757394,0.0003288,7]
[342662415,1732027898059,-450.757394,0.0003288,7]
[342662416,1732027898068,-4284.791342,0.0003288,7]
[342662417,1732027898077,-4284.791342,0.0003288,7]
[342662418,1732027898087,-151.0,0.0003288,7]
[342662419,1732027898097,-5218.185366,0.0003288,7]
[342662420,1732027898106,-5218.185366,0.0003288,7]
[342662421,1732027898116,-837.260889,0.0003288,7]
[342662422,1732027898125,-837.260889,0.0003288,7]
[342662423,1732027898135,-1216.387468,0.0003288,7]
[342662424,1732027898144,-1216.387468,0.0003288,7]
[342662425,1732027898153,-155.155781,0.0003288,7]
[342662426,1732027898162,-155.155781,0.0003288,7]
[342662427,1732027898171,-164.5695,0.0003288,7]
[342662428,1732027898180,-164.5695,0.0003288,7]
[342662429,1732027898190,-151.0,0.0003288,7]
[342662430,1732027898199,-697.462973,0.0003288,7]
[342662431,1732027898208,-697.462973,0.0003288,7]
[342662432,1732027898218,-2734.916534,0.0003288,7]
[342662433,1732027898228,-2734.916534,0.0003288,7]
[342662434,1732027898237,-151.0,0.0003288,7]
[342662435,1732027898247,-756.26922,0.0003288,7]
[342662436,1732027898256,-454.7,0.0003288,7]
[342662437,1732027898265,-491.910606,0.0003288,7]
[342662438,1732027898274,-454.7,0.0003288,7]
[342662439,1732027898283,-756.26922,0.0003288,7]
[342662440,1732027898297,-491.910606,0.0003288,7]
[342662441,1732027898306,-762.994621,0.0003288,7]
[342662442,1732027898316,-762.994621,0.0003288,7]
[342662443,1732027898325,-305.484838,0.0003288,7]
[342662444,1732027898335,-276.859952,0.0003288,7]
[342662445,1732027898347,-305.484838,0.0003288,7]
[342662446,1732027898356,-276.859952,0.0003288,7]
[342662447,1732027898366,-795.371889,0.0003288,7]
[342662448,1732027898375,-795.371889,0.0003288,7]
[342662449,1732027898385,-407.302831,0.0003288,7]
[342662450,1732027898395,-407.302831,0.0003288,7]
[342662451,1732027898404,-752.768844,0.0003288,7]
[342662452,1732027898416,-752.768844,0.0003288,7]
[342662453,1732027898425,-930.621483,0.0003288,7]
[342662454,1732027898436,-262.646924,0.0003288,7]
[342662455,1732027898445,-930.621483,0.0003288,7]
[342662456,1732027898455,-262.646924,0.0003288,7]
[342662457,1732027898463,-2573.487954,0.0003288,7]
[342662458,1732027898475,-2573.487954,0.0003288,7]
[342662459,1732027898484,-896.231189,0.0003288,7]
[342662460,1732027898493,-896.231189,0.0003288,7]
[342662461,1732027898503,-10000.0,0.0003288,7]
[342662462,1732027898512,-10000.0,0.0003288,7]
[342662463,1732027898521,-151.0,0.0003288,7]
[342662464,1732027898530,-10000.0,0.0003288,7]
[342662465,1732027898542,-10000.0,0.0003288,7]
[342662466,1732027898551,-513.367611,0.0003288,7]
[342662467,1732027898560,-10000.0,0.0003288,7]
[342662468,1732027898569,-513.367611,0.0003288,7]
[342662469,1732027898578,-10000.0,0.0003288,7]
[342662470,1732027898587,-10000.0,0.0003288,7]
[342662471,1732027898596,-163.655185,0.0003288,7]
[342662472,1732027898605,-163.655185,0.0003288,7]
[342662473,1732027898614,-500.0,0.0003288,7]
[342662474,1732027898623,-500.0,0.0003288,7]
[342662475,1732027898632,-312.196955,0.0003288,7]
[342662476,1732027898642,-312.196955,0.0003288,7]
[342662477,1732027898651,-547.483222,0.0003288,7]
[342662478,1732027898660,-547.483222,0.0003288,7]
[342662479,1732027898670,-151.0,0.0003288,7]
[342662480,1732027898680,-151.0,0.0003288,7]
[342662481,1732027898689,-150.0,0.00032892,7]
[342662482,1732027898698,-1000.0,0.00032976,14]
[342662483,1732027898708,-50000.0,0.00033,23]
[342662484,1732027898717,-50000.0,0.00033,13]
[342662485,1732027898726,-24817.82511204,0.00033,2]
[342662486,1732027898735,-500.0,0.00033,10]
[342662487,1732027898745,-500.0,0.00033,10]
[342662488,1732027898754,-346258.26440654,0.00033,2]
[342662489,1732027898763,-9791.85788712,0.00033,2]
[342662490,1732027898772,-197.21718,0.00033,120]
[342662491,1732027898781,-166.92609,0.00033,120]
[342662492,1732027898795,-500.0,0.00033,120]
[342662493,1732027898804,-1800.0,0.00033,34]
[342662494,1732027898813,-500.51895789,0.00033,90]
[342662495,1732027898822,-1700.00514035,0.00033,10]
[342662496,1732027898831,-6022.10232624,0.00033,60]
[342662497,1732027898840,-507.949773,0.00033,14]
[342662498,1732027898850,-210.0,0.00033,2]
[342662499,1732027898859,-151.0,0.00033014,120]
[342662500,1732027898868,-1000.0,0.00033076,14]
[342662501,1732027898877,-4479.28503139,0.00033109,7]
[342662502,1732027898888,-222.0,0.00033109,120]
[342662503,1732027898897,-2957.63,0.00033151,120]
[342662504,1732027898906,-447.48640307,0.00033163,7]
[342662505,1732027898915,-160.20028232,0.00033163,7]
[342662506,1732027898924,-195.78455287,0.00033163,7]
[342662507,1732027898934,-1000.0,0.00033176,14]
[342662508,1732027898943,-332.4485664,0.0003321,15]
[342662509,1732027898952,-199.718,0.0003324,120]
[342662510,1732027898962,-1000.0,0.00033275,14]
[342662511,1732027898971,-2000.0,0.00033289,120]
[342662512,1732027898981,-1300.0,0.000333,7]
[342662513,1732027898990,-1000.0,0.00033375,14]
[342662514,1732027898999,-25806.33086278,0.000334,120]
[342662515,1732027899010,-447.48640307,0.00033457,7]
[342662516,1732027899019,-160.20028232,0.00033457,7]
[342662517,1732027899028,-195.78455287,0.00033457,7]
[342662518,1732027899041,-1009.82,0.0003346,2]
[342662519,1732027899050,-1000.0,0.00033474,14]
[342662520,1732027899059,-1154.22046119,0.000335,2]
[342662521,1732027899072,-310.95402905,0.00033534,14]
[342662522,1732027899083,-150.0,0.00033555,7]
[342662523,1732027899092,-1000.0,0.00033574,14]
[342662524,1732027899101,-150.0,0.00033638,7]
[342662525,1732027899111,-1000.0,0.00033674,14]
[342662526,1732027899120,-768.0,0.00033674,30]
[342662527,1732027899130,-447.48640307,0.00033751,7]
[342662528,1732027899139,-160.20028232,0.00033751,7]
[342662529,1732027899148,-195.78455287,0.00033751,7]
[342662530,1732027899157,-1000.0,0.00033773,14]
[342662531,1732027899166,-613557.341094,0.000338,3]
[342662532,1732027899175,-2000.0,0.00033803,120]
[342662533,1732027899185,-150.0,0.00033824,7]
[342662534,1732027899195,-150.0,0.00033824,7]
[342662535,1732027899205,-150.0,0.00033824,7]
[342662536,1732027899213,-150.0,0.0003387,10]
[342662537,1732027899222,-1000.0,0.00033873,14]
[342662538,1732027899232,-2499.999999,0.000339,10]
[342662539,1732027899241,-150.0,0.00033912,120]
[342662540,1732027899251,-70000.0,0.0003392,5]
[342662541,1732027899261,-1000.0,0.00033973,14]
[342662542,1732027899270,-50000.0,0.00034,24]
[342662543,1732027899279,-50000.0,0.00034,14]
[342662544,1732027899294,-1001.57849382,0.00034,2]
[342662545,1732027899303,-11632.51594611,0.00034,2]
[342662546,1732027899312,-500.0,0.00034,10]
[342662547,1732027899321,-500.0,0.00034,10]
[342662548,1732027899330,-900.0,0.00034,20]
[342662549,1732027899341,-500.0,0.00034,120]
[342662550,1732027899353,-1800.0,0.00034,35]
[342662551,1732027899362,-500.0,0.00034,120]
[342662552,1732027899371,-309.98058622,0.00034,120]
[342662553,1732027899380,-308.27126663,0.00034,30]
[342662554,1732027899391,-2100.05951106,0.00034,120]
[342662555,1732027899400,-1383.22408833,0.00034,120]
[342662556,1732027899410,-2000.0,0.00034,2]
[342662557,1732027899419,-1256.0,0.00034,2]
[342662558,1732027899428,-1994.0,0.00034,2]
[342662559,1732027899438,-385.599844,0.00034,30]
[342662560,1732027899448,-3747.0,0.00034,2]
[342662561,1732027899457,-814.0,0.00034,2]
[342662562,1732027899466,-391.392,0.00034,2]
[342662563,1732027899475,-1260.0,0.00034,2]
[342662564,1732027899484,-150.0,0.00034,60]
[342662565,1732027899493,-150.0,0.00034,60]
[342662566,1732027899502,-150.0,0.00034,60]
[342662567,1732027899569,-177.471102,0.00034,60]
[342662568,1732027899578,-150.0,0.00034,2]
[342662569,1732027899587,-447.48640307,0.00034045,7]
[342662570,1732027899596,-160.20028232,0.00034045,7]
[342662571,1732027899605,-195.78455287,0.00034045,7]
[342662572,1732027899615,-1000.0,0.00034072,14]
[342662573,1732027899625,-199.711,0.0003408,120]
[342662574,1732027899634,-1000.0,0.00034172,14]
[342662575,1732027899643,-2000.0,0.00034234,31]
[342662576,1732027899652,-4125.24,0.00034246,47]
[342662577,1732027899661,-1000.0,0.00034271,14]
[342662578,1732027899671,-166.92609,0.000343,120]
[342662579,1732027899683,-2000.0,0.00034318,120]
[342662580,1732027899698,-447.48640307,0.00034338,7]
[342662581,1732027899709,-160.20028232,0.00034338,7]
[342662582,1732027899718,-195.78455287,0.00034338,7]
[342662583,1732027899728,-1000.0,0.00034371,14]
[342662584,1732027899738,-1058.71,0.00034381,2]
[342662585,1732027899747,-150.0,0.00034384,7]
[342662586,1732027899756,-301.43,0.00034409,2]
[342662587,1732027899765,-156.5,0.00034409,2]
[342662588,1732027899775,-300.0,0.00034409,2]
[342662589,1732027899784,-150.0,0.00034409,2]
[342662590,1732027899799,-89500.0,0.0003445,4]
[342662591,1732027899808,-1000.0,0.00034471,14]
[342662592,1732027899817,-4923.85211371,0.000345,2]
[342662593,1732027899826,-5000.0,0.000345,2]
[342662594,1732027899835,-151.0,0.00034521,120]
[342662595,1732027899844,-150.0,0.00034548,10]
[342662596,1732027899853,-436.17,0.00034549,2]
[342662597,1732027899862,-563.82,0.00034549,2]
[342662598,1732027899871,-793.08,0.00034549,2]
[342662599,1732027899880,-1000.0,0.0003457,14]
[342662600,1732027899889,-1595.513524,0.0003462,14]
[342662601,1732027899898,-447.48640307,0.00034632,7]
[342662602,1732027899907,-160.20028232,0.00034632,7]
[342662603,1732027899917,-195.78455287,0.00034632,7]
[342662604,1732027899926,-150.0,0.00034632,7]
[342662605,1732027899935,-1000.0,0.0003464,14]
[342662606,1732027899944,-1000.0,0.0003466,14]
[342662607,1732027899953,-1000.0,0.0003467,14]
[342662608,1732027899962,-1000.0,0.0003468,14]
[342662609,1732027899971,-1000.0,0.000347,14]
[342662610,1732027899979,-1000.0,0.0003472,14]
[342662611,1732027899988,-1000.0,0.0003474,14]
[342662612,1732027899998,-1557.8,0.00034746,120]
[342662613,1732027900007,-150.0,0.00034752,120]
[342662614,1732027900015,-1000.0,0.0003476,14]
[342662615,1732027900024,-1000.0,0.0003477,14]
[342662616,1732027900033,-1000.0,0.0003478,14]
[342662617,1732027900049,-1000.0,0.000348,14]
[342662618,1732027900058,-1000.0,0.0003482,14]
[342662619,1732027900066,-2000.0,0.00034832,120]
[342662620,1732027900075,-1000.0,0.0003484,14]
[342662621,1732027900084,-1000.0,0.0003486,14]
[342662622,1732027900094,-1000.0,0.00034869,14]
[342662623,1732027900104,-87000.0,0.0003488,7]
[342662624,1732027900113,-1009.82,0.0003488,2]
[342662625,1732027900122,-1000.0,0.0003488,14]
[342662626,1732027900131,-1000.0,0.000349,14]
[342662627,1732027900140,-200.667,0.0003492,120]
[342662628,1732027900149,-1000.0,0.0003492,14]
[342662629,1732027900158,-447.48640307,0.00034926,7]
[342662630,1732027900167,-160.20028232,0.00034926,7]
[342662631,1732027900176,-195.78455287,0.00034926,7]
[342662632,1732027900186,-74580.0,0.0003493,5]
[342662633,1732027900195,-1000.0,0.0003494,14]
[342662634,1732027900205,-1350.678002,0.0003494,14]
[342662635,1732027900214,-1000.0,0.00034945,120]
[342662636,1732027900223,-1000.0,0.0003496,14]
[342662637,1732027900232,-1000.0,0.0003496,14]
[342662638,1732027900241,-1000.0,0.00034969,14]
[342662639,1732027900250,-150.5,0.0003497,120]
[342662640,1732027900259,-150.5,0.0003497,120]
[342662641,1732027900268,-964.0,0.0003497,30]
[342662642,1732027900277,-964.0,0.0003497,30]
[342662643,1732027900291,-269.56,0.0003497,120]
[342662644,1732027900301,-275.75,0.0003497,120]
[342662645,1732027900310,-150.5,0.0003498,120]
[342662646,1732027900320,-150.5,0.0003498,120]
[342662647,1732027900329,-150.5,0.0003498,120]
[342662648,1732027900339,-150.5,0.0003498,120]
[342662649,1732027900352,-964.0,0.0003498,30]
[342662650,1732027900361,-277.9,0.0003498,120]
[342662651,1732027900370,-964.0,0.0003498,30]
[342662652,1732027900379,-964.0,0.0003498,30]
[342662653,1732027900388,-973.58,0.0003498,30]
[342662654,1732027900398,-1000.0,0.0003498,14]
[342662655,1732027900408,-1000.0,0.0003498,14]
[342662656,1732027900418,-142133.86041168,0.0003499,2]
[342662657,1732027900428,-70213.50340159,0.0003499,2]
[342662658,1732027900438,-150.5,0.0003499,120]
[342662659,1732027900447,-150.5,0.0003499,120]
[342662660,1732027900455,-150.5,0.0003499,120]
[342662661,1732027900464,-150.5,0.0003499,120]
[342662662,1732027900473,-300.21,0.0003499,120]
[342662663,1732027900483,-964.0,0.0003499,30]
[342662664,1732027900494,-150.5,0.0003499,120]
[342662665,1732027900503,-964.0,0.0003499,30]
[342662666,1732027900513,-964.0,0.0003499,30]
[342662667,1732027900522,-964.0,0.0003499,30]
[342662668,1732027900531,-184.23,0.0003499,120]
[342662669,1732027900550,-175.192,0.00034998,40]
[342662670,1732027900560,-2447.483,0.00034999,40]
[342662671,1732027900570,-50000.0,0.00035,25]
[342662672,1732027900580,-50000.0,0.00035,35]
[342662673,1732027900589,-507.26,0.00035,4]
[342662674,1732027900598,-3900.0,0.00035,7]
[342662675,1732027900607,-2880.20661458,0.00035,2]
[342662676,1732027900617,-259.0,0.00035,10]
[342662677,1732027900627,-2000.0,0.00035,14]
[342662678,1732027900636,-150.0,0.00035,2]
[342662679,1732027900645,-1191.3785518,0.00035,3]
[342662680,1732027900654,-15015.57860641,0.00035,10]
[342662681,1732027900663,-250.0,0.00035,20]
[342662682,1732027900673,-15221.73995205,0.00035,10]
[342662683,1732027900682,-500.61829162,0.00035,10]
[342662684,1732027900691,-6921.0425019,0.00035,2]
[342662685,1732027900700,-289.89418795,0.00035,30]
[342662686,1732027900709,-1128.9809276,0.00035,120]
[342662687,1732027900718,-3143.87593207,0.00035,60]
[342662688,1732027900726,-700.0,0.00035,120]
[342662689,1732027900736,-1800.0,0.00035,36]
[342662690,1732027900745,-500.0,0.00035,120]
[342662691,1732027900754,-1000.0,0.00035,60]
[342662692,1732027900763,-1500.0,0.00035,120]
[342662693,1732027900772,-761.03054782,0.00035,30]
[342662694,1732027900781,-1516.78,0.00035,30]
[342662695,1732027900797,-2002.0,0.00035,120]
[342662696,1732027900806,-977.41448372,0.00035,120]
[342662697,1732027900815,-1767.83173254,0.00035,120]
[342662698,1732027900824,-2006.2521752,0.00035,120]
[342662699,1732027900833,-200.0,0.00035,120]
[342662700,1732027900843,-197.17326776,0.00035,120]
[342662701,1732027900852,-3000.0,0.00035,2]
[342662702,1732027900862,-6889.0,0.00035,94]
[342662703,1732027900876,-158.193695,0.00035,30]
[342662704,1732027900887,-158.193695,0.00035,30]
[342662705,1732027900905,-1621.27593996,0.00035,120]
[342662706,1732027900916,-1000.0,0.00035,14]
[342662707,1732027900925,-1000.0,0.00035,14]
[342662708,1732027900935,-1280.0,0.00035,120]
[342662709,1732027900944,-158.5,0.00035,10]
[342662710,1732027900954,-7210.24923061,0.00035,14]
[342662711,1732027900964,-150.0,0.00035,7]
[342662712,1732027900973,-187.47310277,0.00035,5]
[342662713,1732027900984,-3014.34204003,0.00035,15]
[342662714,1732027900995,-992.13372476,0.00035,14]
[342662715,1732027901004,-1000.0,0.00035,15]
[342662716,1732027901014,-500.0,0.00035,120]
[342662717,1732027901023,-1800.0,0.00035,36]
[342662718,1732027901033,-500.0,0.00035,120]
[342662719,1732027901047,-760.80445759,0.00035014,90]
[342662720,1732027901056,-1000.0,0.00035068,14]
[342662721,1732027901065,-150.0,0.00035129,7]
[342662722,1732027901074,-1000.0,0.00035168,14]
[342662723,1732027901087,-447.48640307,0.0003522,7]
[342662724,1732027901105,-160.20028232,0.0003522,7]
[342662725,1732027901116,-195.78455287,0.0003522,7]
[342662726,1732027901130,-1000.0,0.00035268,14]
[342662727,1732027901141,-150.0,0.00035278,7]
[342662728,1732027901151,-2000.0,0.00035347,120]
[342662729,1732027901160,-1000.0,0.00035367,14]
[342662730,1732027901169,-1000.0,0.00035467,14]
[342662731,1732027901178,-447.48640307,0.00035513,7]
[342662732,1732027901187,-160.20028232,0.00035513,7]
[342662733,1732027901196,-195.78455287,0.00035513,7]
[342662734,1732027901205,-1000.0,0.00035567,14]
[342662735,1732027901215,-166.92609,0.000356,120]
[342662736,1732027901224,-10000.0,0.000356,120]
[342662737,1732027901234,-4125.24,0.00035616,52]
[342662738,1732027901243,-500.0,0.00035616,120]
[342662739,1732027901253,-5000.0,0.00035616,120]
[342662740,1732027901262,-968.32,0.00035616,2]
[342662741,1732027901272,-1000.0,0.00035666,14]
[342662742,1732027901281,-161.111913,0.00035698,60]
[342662743,1732027901294,-150.0,0.00035709,7]
[342662744,1732027901304,-433.13,0.00035714,2]
[342662745,1732027901313,-1000.0,0.00035766,14]
[342662746,1732027901323,-181.111913,0.00035798,60]
[342662747,1732027901332,-191.29,0.000358,30]
[342662748,1732027901347,-447.48640307,0.00035807,7]
[342662749,1732027901356,-160.20028232,0.00035807,7]
[342662750,1732027901366,-195.78455287,0.00035807,7]
[342662751,1732027901376,-2000.0,0.00035861,120]
[342662752,1732027901386,-1000.0,0.00035866,14]
[342662753,1732027901396,-150.0,0.00035875,7]